bitfinex-derivatives/quotes_BNBF0:USTF0_20250710
["timestamp","ask_amount","ask_price","bid_price","bid_amount"]
[1752113837371,0.25956783,670.6,670.16,1.51824866]
[1752113837568,0.25956783,670.6,669.92,1.66167156]
[1752113837767,0.25956783,670.6,669.93,1.51814005]
[1752113837971,0.25956783,670.6,669.94,1.51814005]
[1752113838171,0.25956783,670.6,669.95,1.51814005]
[1752113838371,0.25956783,670.6,669.96,1.51814005]
[1752113838668,0.25956783,670.6,669.97,1.51814005]
[1752113838969,0.25956783,670.6,669.98,1.51814005]
[1752113839166,0.25956783,670.6,669.93,1.66167156]
[1752113839167,0.25956783,670.6,669.99,1.51814005]
[1752113839470,0.25956783,670.6,670.0,1.51814005]
[1752113839669,0.25956783,670.6,670.01,1.51814005]
[1752113839869,0.25956783,670.6,670.02,1.51814005]
[1752113840068,0.25956783,670.6,670.03,1.51814005]
[1752113840271,0.25956783,670.6,670.04,1.51814005]
[1752113840471,0.25956783,670.6,670.05,1.51814005]
[1752113840667,0.25956783,670.6,670.06,1.51814005]
[1752113840970,0.25956783,670.6,670.07,1.51814005]
[1752113841167,0.25956783,670.6,670.08,1.51814005]
[1752113841370,0.25956783,670.6,670.09,1.51814005]
[1752113841572,0.25956783,670.6,670.1,1.51814005]
[1752113841770,0.25956783,670.6,670.11,1.51814005]
[1752113842072,0.25956783,670.6,670.12,1.51814005]
[1752113842275,0.25956783,670.6,670.13,1.51814005]
[1752113842467,0.25956783,670.6,670.14,1.51814005]
[1752113842668,0.25956783,670.6,670.15,1.51814005]
[1752113842871,0.25956783,670.6,670.16,1.51814005]
[1752113843068,0.25956783,670.6,670.01,2.208]
[1752113843272,0.25956783,670.6,670.02,1.51805673]
[1752113843569,0.25956783,670.6,670.03,1.51805673]
[1752113843769,0.25956783,670.6,670.04,1.51805673]
[1752113844073,0.25956783,670.6,670.01,2.208]
[1752113844074,0.25956783,670.6,670.05,1.51805673]
[1752113844369,0.25956783,670.6,670.06,1.51805673]
[1752113844574,0.25956783,670.6,670.07,1.51805673]
[1752113844771,0.25956783,670.6,670.08,1.51805673]
[1752113844975,0.25956783,670.6,670.09,1.51805673]
[1752113845175,0.25956783,670.6,670.1,1.51805673]
[1752113845372,0.25956783,670.6,670.11,1.51805673]
[1752113845571,0.25956783,670.6,670.12,1.51805673]
[1752113845874,0.25956783,670.6,670.13,1.51805673]
[1752113846178,0.25956783,670.6,670.14,1.51805673]
[1752113846473,0.25956783,670.6,670.15,1.51805673]
[1752113846673,0.25956783,670.6,670.16,1.51805673]
[1752113846873,0.25956783,670.6,670.01,2.208]
[1752113847077,0.25956783,670.6,670.02,1.51805675]
[1752113847378,0.25956783,670.6,670.03,1.51805675]
[1752113847678,0.25956783,670.6,670.04,1.51805675]
[1752113847877,0.25956783,670.6,670.05,1.51805675]
[1752113848077,0.25956783,670.6,670.06,1.51805675]
[1752113848274,0.25956783,670.6,670.07,1.51805675]
[1752113848474,0.25956783,670.6,670.08,1.51805675]
[1752113848674,0.25956783,670.6,670.09,1.51805675]
[1752113848880,0.25956783,670.6,670.1,1.51805675]
[1752113849080,0.25956783,670.6,670.11,1.51805675]
[1752113849279,0.25956783,670.6,670.12,1.51805675]
[1752113849478,0.25956783,670.6,670.13,1.51805675]
[1752113849678,0.25956783,670.6,670.14,1.51805675]
[1752113849875,0.25956783,670.6,670.15,1.51805675]
[1752113850080,0.25956783,670.6,670.16,1.51805675]
[1752113850278,0.25956783,670.6,670.01,2.208]
[1752113850478,0.25956783,670.6,670.02,1.51811173]
[1752113850782,0.25956783,670.6,670.01,2.208]
[1752113850783,0.25956783,670.6,670.03,1.51811173]
[1752113851082,0.25956783,670.6,670.04,1.51811173]
[1752113851278,0.25956783,670.6,670.05,1.51811173]
[1752113851479,0.25956783,670.6,670.06,1.51811173]
[1752113851679,0.25956783,670.6,670.07,1.51811173]
[1752113851883,0.25956783,670.6,670.08,1.51811173]
[1752113852080,0.25956783,670.6,670.09,1.51811173]
[1752113852283,0.25956783,670.6,670.1,1.51811173]
[1752113852484,0.25956783,670.6,670.11,1.51811173]
[1752113852684,0.25956783,670.6,670.12,1.51811173]
[1752113852879,0.25956783,670.6,670.13,1.51811173]
[1752113853081,0.25956783,670.6,670.14,1.51811173]
[1752113853280,0.25956783,670.6,670.15,1.51811173]
[1752113853484,0.25956783,670.6,670.16,1.51811173]
[1752113853684,0.25956783,670.6,670.17,1.51811173]
[1752113853882,0.25956783,670.6,670.18,1.51811173]
[1752113854081,0.25956783,670.6,670.19,1.51811173]
[1752113854283,0.25956783,670.6,670.2,1.51811173]
[1752113854581,0.25956783,670.6,670.21,1.51811173]
[1752113854782,0.25956783,670.6,670.01,2.208]
[1752113854988,0.25956783,670.6,670.02,1.51777677]
[1752113855187,0.25956783,670.6,670.03,1.51777677]
[1752113855393,0.25956783,670.6,670.04,1.51777677]
[1752113855693,0.25956783,670.6,670.05,1.51777677]
[1752113855992,0.25956783,670.6,670.06,1.51777677]
[1752113856292,0.25956783,670.6,670.07,1.51777677]
[1752113856493,0.25956783,670.6,670.08,1.51777677]
[1752113856693,0.25956783,670.6,670.09,1.51777677]
[1752113856891,0.25956783,670.6,669.87,1.66167156]
[1752113856892,0.25956783,670.6,670.1,1.51777677]
[1752113857090,0.25956783,670.6,670.11,1.51777677]
[1752113857289,0.25956783,670.6,670.12,1.51777677]
[1752113857492,0.25956783,670.6,670.13,1.51777677]
[1752113857794,0.25956783,670.6,670.14,1.51777677]
[1752113858093,0.25956783,670.6,670.15,1.51777677]
[1752113858290,0.25956783,670.6,670.16,1.51777677]
[1752113858490,0.25956783,670.6,670.17,1.51777677]
[1752113858788,0.25956783,670.6,670.18,1.51777677]
[1752113858989,0.25956783,670.6,670.19,1.51777677]
[1752113859190,0.25956783,670.6,670.2,1.51777677]
[1752113859393,0.25956783,670.6,670.21,1.51777677]
[1752113859589,0.25956783,670.6,669.88,1.66167156]
[1752113859795,0.25956783,670.6,669.89,1.51678201]
[1752113859991,0.25956783,670.6,669.9,1.51678201]
[1752113860295,0.25956783,670.6,669.91,1.51678201]
[1752113860595,0.25956783,670.6,669.92,1.51678201]
[1752113860792,0.25956783,670.6,669.97,1.66167156]
[1752113860997,0.25956783,670.6,669.98,1.51678201]
[1752113861297,0.25956783,670.6,669.99,1.51678201]
[1752113861496,0.25956783,670.6,670.0,1.51678201]
[1752113861694,0.25956783,670.6,670.01,1.51678201]
[1752113861895,0.25956783,670.6,670.02,1.51678201]
[1752113862096,0.25956783,670.6,670.03,1.51678201]
[1752113862296,0.25956783,670.6,670.04,1.51678201]
[1752113862497,0.25956783,670.6,670.05,1.51678201]
[1752113862697,0.25956783,670.6,670.06,1.51678201]
[1752113862895,0.25956783,670.6,670.07,1.51678201]
[1752113863100,0.25956783,670.6,670.08,1.51678201]
[1752113863300,0.25956783,670.6,670.09,1.51678201]
[1752113863498,0.25956783,670.6,670.1,1.51678201]
[1752113863698,0.25956783,670.6,670.11,1.51678201]
[1752113863901,0.25956783,670.6,670.12,1.51678201]
[1752113864197,0.25956783,670.6,670.13,1.51678201]
[1752113864401,0.25956783,670.6,670.14,1.51678201]
[1752113864601,0.25956783,670.6,670.15,1.51678201]
[1752113864801,0.25956783,670.6,670.16,1.51678201]
[1752113865001,0.25956783,670.6,670.17,1.51678201]
[1752113865200,0.25956783,670.6,670.18,1.51678201]
[1752113865506,0.25956783,670.6,670.19,1.51678201]
[1752113865699,0.25956783,670.6,670.2,1.51678201]
[1752113865899,0.25956783,670.6,670.21,1.51678201]
[1752113866098,0.25956783,670.6,669.93,1.66167156]
[1752113866302,0.25956783,670.6,669.94,1.51704477]
[1752113866600,0.25956783,670.6,669.95,1.51704477]
[1752113866799,0.25956783,670.6,669.96,1.51704477]
[1752113867003,0.25956783,670.6,669.97,1.51704477]
[1752113867302,0.25956783,670.6,669.98,1.51704477]
[1752113867502,0.25956783,670.6,669.99,1.51704477]
[1752113867700,0.25956783,670.6,670.0,1.51704477]
[1752113867999,0.25956783,670.6,670.01,1.51704477]
[1752113868201,0.25956783,670.6,670.02,1.51704477]
[1752113868404,0.25956783,670.6,670.03,1.51704477]
[1752113868601,0.25956783,670.6,670.04,1.51704477]
[1752113868806,0.25956783,670.6,670.05,1.51704477]
[1752113869006,0.25956783,670.6,670.06,1.51704477]
[1752113869204,0.25956783,670.6,670.07,1.51704477]
[1752113869504,0.25956783,670.6,670.08,1.51704477]
[1752113869703,0.25956783,670.6,670.09,1.51704477]
[1752113869904,0.25956783,670.6,670.1,1.51704477]
[1752113870209,0.25956783,670.6,670.11,1.51704477]
[1752113870404,0.25956783,670.6,670.12,1.51704477]
[1752113870603,0.25956783,670.6,670.13,1.51704477]
[1752113870804,0.25956783,670.6,670.14,1.51704477]
[1752113871003,0.25956783,670.6,670.15,1.51704477]
[1752113871306,0.25956783,670.6,670.16,1.51704477]
[1752113871506,0.25956783,670.6,670.17,1.51704477]
[1752113871706,0.25956783,670.6,670.18,1.51704477]
[1752113871907,0.25956783,670.6,670.19,1.51704477]
[1752113872107,0.25956783,670.6,670.2,1.51704477]
[1752113872308,0.25956783,670.6,670.21,1.51704477]
[1752113872607,0.25956783,670.6,670.22,1.51704477]
[1752113872903,0.25956783,670.6,670.23,1.51704477]
[1752113873104,0.25956783,670.6,669.95,1.66167156]
[1752113873307,0.25956783,670.6,669.96,1.51781454]
[1752113873507,0.25956783,670.6,670.01,1.66167156]
[1752113873702,0.25956783,670.6,670.02,1.51781454]
[1752113873908,0.25956783,670.6,670.03,1.51781454]
[1752113874204,0.25956783,670.6,670.04,1.51781454]
[1752113874508,0.25956783,670.6,670.05,1.51781454]
[1752113874808,0.25956783,670.6,670.06,1.51781454]
[1752113875005,0.25956783,670.6,670.07,1.51781454]
[1752113875210,0.25956783,670.6,670.08,1.51781454]
[1752113875511,0.25956783,670.6,670.09,1.51781454]
[1752113875806,0.25956783,670.6,670.1,1.51781454]
[1752113876106,0.25956783,670.6,670.11,1.51781454]
[1752113876307,0.25956783,670.6,670.12,1.51781454]
[1752113876509,0.25956783,670.6,670.13,1.51781454]
[1752113876806,0.25956783,670.6,670.14,1.51781454]
[1752113877010,0.25956783,670.6,670.15,1.51781454]
[1752113877310,0.25956783,670.6,670.16,1.51781454]
[1752113877509,0.25956783,670.6,670.17,1.51781454]
[1752113877707,0.25956783,670.6,670.18,1.51781454]
[1752113877906,0.25956783,670.6,670.19,1.51781454]
[1752113878109,0.25956783,670.6,670.2,1.51781454]
[1752113878308,0.25956783,670.6,670.21,1.51781454]
[1752113878506,0.25956783,670.6,670.22,1.51781454]
[1752113878711,0.25956783,670.6,670.23,1.51781454]
[1752113878912,0.25956783,670.6,670.24,1.51781454]
[1752113879111,0.25956783,670.6,670.25,1.51781454]
[1752113879312,0.25956783,670.6,669.99,1.66167156]
[1752113879513,0.25956783,670.6,670.0,1.518862]
[1752113879711,0.25956783,670.6,670.01,1.518862]
[1752113879910,0.25956783,670.6,670.02,1.518862]
[1752113880218,0.25956783,670.6,670.03,1.518862]
[1752113880513,0.25956783,670.6,670.04,1.518862]
[1752113880713,0.25956783,670.6,670.05,1.518862]
[1752113880913,0.25956783,670.6,670.06,1.518862]
[1752113881112,0.25956783,670.6,670.07,1.518862]
[1752113881310,0.25956783,670.6,670.08,1.518862]
[1752113881513,0.25956783,670.6,670.09,1.518862]
[1752113881814,0.25956783,670.6,670.1,1.518862]
[1752113882014,0.25956783,670.6,670.11,1.518862]
[1752113882215,0.25956783,670.6,670.12,1.518862]
[1752113882410,0.25956783,670.6,670.13,1.518862]
[1752113882614,0.25956783,670.6,670.14,1.518862]
[1752113882909,0.25956783,670.6,670.15,1.518862]
[1752113883114,0.25956783,670.6,670.16,1.518862]
[1752113883410,0.25956783,670.6,670.17,1.518862]
[1752113883613,0.25956783,670.6,670.18,1.518862]
[1752113883814,0.25956783,670.6,670.19,1.518862]
[1752113884114,0.25956783,670.6,670.2,1.518862]
[1752113884314,0.25956783,670.6,670.21,1.518862]
[1752113884515,0.25956783,670.6,670.22,1.518862]
[1752113884713,0.25956783,670.6,670.23,1.518862]
[1752113885016,0.25956783,670.6,670.24,1.518862]
[1752113885212,0.25956783,670.6,669.94,1.66167156]
[1752113885417,0.25956783,670.6,669.95,1.51900394]
[1752113885618,0.25956783,670.6,669.96,1.51900394]
[1752113885913,0.25956783,670.6,669.72,1.988]
[1752113886112,0.25956783,670.6,669.73,1.52271994]
[1752113886413,0.25956783,670.6,669.74,1.52271994]
[1752113886617,0.25956783,670.6,669.75,1.52271994]
[1752113886816,0.25956783,670.6,669.76,1.52271994]
[1752113887016,0.25956783,670.6,669.77,1.52271994]
[1752113887213,0.25956783,670.6,669.78,1.52271994]
[1752113887417,0.25956783,670.6,669.79,1.52271994]
[1752113887617,0.25956783,670.6,669.8,1.52271994]
[1752113887814,0.25956783,670.6,669.81,1.52271994]
[1752113888015,0.25956783,670.6,669.82,1.52271994]
[1752113888216,0.25956783,670.6,669.72,1.988]
[1752113888414,0.25956783,670.6,669.73,1.51899901]
[1752113888719,0.25956783,670.6,669.74,1.51899901]
[1752113888918,0.25956783,670.6,669.72,1.988]
[1752113888919,0.25956783,670.6,669.75,1.51899901]
[1752113889118,0.25956783,670.6,669.76,1.51899901]
[1752113889319,0.25956783,670.6,669.77,1.51899901]
[1752113889520,0.25956783,670.6,669.72,1.988]
[1752113889521,0.25956783,670.6,669.78,1.51899901]
[1752113889717,0.25956783,670.6,669.79,1.51899901]
[1752113889921,0.25956783,670.6,669.8,1.51899901]
[1752113890122,0.25956783,670.6,669.72,1.988]
[1752113890320,0.25956783,670.6,669.73,1.51756714]
[1752113890520,0.25956783,670.6,669.74,1.51756714]
[1752113890718,0.25956783,670.6,669.75,1.51756714]
[1752113890918,0.25956783,670.6,669.76,1.51756714]
[1752113891122,0.25956783,670.6,669.77,1.51756714]
[1752113891322,0.25956783,670.6,669.78,1.51756714]
[1752113891517,0.25956783,670.6,669.79,1.51756714]
[1752113891721,0.25956783,670.6,669.72,1.988]
[1752113891921,0.25956783,670.6,669.73,1.5169726]
[1752113892122,0.25956783,670.6,669.74,1.5169726]
[1752113892322,0.25956783,670.6,669.75,1.5169726]
[1752113892522,0.25956783,670.6,669.76,1.5169726]
[1752113892818,0.25956783,670.6,669.77,1.5169726]
[1752113893023,0.25956783,670.6,669.78,1.5169726]
[1752113893222,0.25956783,670.6,669.72,1.988]
[1752113893223,0.25956783,670.6,669.79,1.5169726]
[1752113893442,0.25956783,670.6,669.72,1.988]
[1752113893634,0.25956783,670.6,669.73,1.51599293]
[1752113893824,0.25956783,670.6,669.74,1.51599293]
[1752113894122,0.25956783,670.6,669.75,1.51599293]
[1752113894321,0.25956783,670.6,669.72,1.988]
[1752113894322,0.25956783,670.6,669.76,1.51599293]
[1752113894520,0.25956783,670.6,669.72,1.988]
[1752113894521,0.25956783,670.6,669.77,1.51599293]
[1752113894724,0.25956783,670.6,669.78,1.51599293]
[1752113894920,0.25956783,670.6,669.79,1.51599293]
[1752113895119,0.25956783,670.6,669.72,1.988]
[1752113895323,0.25956783,670.6,669.73,1.51517833]
[1752113895522,0.25956783,670.6,669.74,1.51517833]
[1752113895721,0.25956783,670.6,669.75,1.51517833]
[1752113896027,0.25956783,670.6,669.76,1.51517833]
[1752113896322,0.25956783,670.6,669.77,1.51517833]
[1752113896522,0.25956783,670.6,669.78,1.51517833]
[1752113896728,0.25956783,670.6,669.72,1.988]
[1752113896927,0.25956783,670.6,669.73,1.51481865]
[1752113897124,0.25956783,670.6,669.74,1.51481865]
[1752113897325,0.25956783,670.6,669.75,1.51481865]
[1752113897525,0.25956783,670.6,669.76,1.51481865]
[1752113897724,0.25956783,670.6,669.77,1.51481865]
[1752113897924,0.25956783,670.6,669.78,1.51481865]
[1752113898223,0.25956783,670.6,669.72,1.988]
[1752113898426,0.25956783,670.6,669.73,1.51418424]
[1752113898624,0.25956783,670.6,669.74,1.51418424]
[1752113898824,0.25956783,670.6,669.75,1.51418424]
[1752113899026,0.25956783,670.6,669.76,1.51418424]
[1752113899223,0.25956783,670.6,669.77,1.51418424]
[1752113899428,0.25956783,670.6,669.78,1.51418424]
[1752113899631,0.25956783,670.6,669.72,1.988]
[1752113899830,0.25956783,670.6,669.73,1.51389556]
[1752113900029,0.25956783,670.6,669.74,1.51389556]
[1752113900329,0.25956783,670.6,669.75,1.51389556]
[1752113900529,0.25956783,670.6,669.76,1.51389556]
[1752113900730,0.25956783,670.6,669.77,1.51389556]
[1752113901030,0.25956783,670.6,669.78,1.51389556]
[1752113901231,0.25956783,670.6,669.72,1.988]
[1752113901430,0.25956783,670.6,669.73,1.51335307]
[1752113901630,0.25956783,670.6,669.74,1.51335307]
[1752113901930,0.25956783,670.6,669.75,1.51335307]
[1752113902232,0.25956783,670.6,669.76,1.51335307]
[1752113902527,0.25956783,670.6,669.77,1.51335307]
[1752113902731,0.25956783,670.6,669.78,1.51335307]
[1752113902925,0.25956783,670.6,669.79,1.51335307]
[1752113903127,0.25956783,670.6,669.72,1.988]
[1752113903332,0.25956783,670.6,669.73,1.51292295]
[1752113903530,0.25956783,670.6,669.74,1.51292295]
[1752113903725,0.25956783,670.6,669.75,1.51292295]
[1752113904026,0.25956783,670.6,669.76,1.51292295]
[1752113904230,0.25956783,670.6,669.77,1.51292295]
[1752113904427,0.25956783,670.6,669.78,1.51292295]
[1752113904626,0.25956783,670.6,669.79,1.51292295]
[1752113904827,0.25956783,670.6,669.72,1.988]
[1752113905128,0.25956783,670.6,669.73,1.51244993]
[1752113905327,0.25956783,670.6,669.74,1.51244993]
[1752113905632,0.25956783,670.6,669.75,1.51244993]
[1752113905832,0.25956783,670.6,669.76,1.51244993]
[1752113906032,0.25956783,670.6,669.77,1.51244993]
[1752113906334,0.25956783,670.6,669.78,1.51244993]
[1752113906633,0.25956783,670.6,669.79,1.51244993]
[1752113906931,0.25956783,670.6,669.8,1.51244993]
[1752113907230,0.25956783,670.6,669.81,1.51244993]
[1752113907430,0.25956783,670.6,669.82,1.51244993]
[1752113907731,0.25956783,670.6,669.83,1.51244993]
[1752113907931,0.25956783,670.6,669.84,1.51244993]
[1752113908129,0.25956783,670.6,669.85,1.51244993]
[1752113908334,0.25956783,670.6,669.86,1.51244993]
[1752113908532,0.25956783,670.6,669.87,1.51244993]
[1752113908735,0.25956783,670.6,669.88,1.51244993]
[1752113909032,0.25956783,670.6,669.89,1.51244993]
[1752113909329,0.25956783,670.6,669.9,1.51244993]
[1752113909528,0.25956783,670.6,669.91,1.51244993]
[1752113909728,0.25956783,670.6,669.92,1.51244993]
[1752113909932,0.25956783,670.6,669.93,1.51244993]
[1752113910128,0.25956783,670.6,669.72,1.988]
[1752113910330,0.25956783,670.6,669.73,1.51155079]
[1752113910529,0.25956783,670.6,669.74,1.51155079]
[1752113910733,0.25956783,670.6,669.75,1.51155079]
[1752113910933,0.25956783,670.6,669.76,1.51155079]
[1752113911132,0.25956783,670.6,669.77,1.51155079]
[1752113911336,0.25956783,670.6,669.78,1.51155079]
[1752113911530,0.25956783,670.6,669.79,1.51155079]
[1752113911730,0.25956783,670.6,669.8,1.51155079]
[1752113911934,0.25956783,670.6,669.81,1.51155079]
[1752113912135,0.25956783,670.6,669.82,1.51155079]
[1752113912430,0.25956783,670.6,669.83,1.51155079]
[1752113912630,0.25956783,670.6,669.84,1.51155079]
[1752113912832,0.25956783,670.6,669.85,1.51155079]
[1752113913030,0.25956783,670.6,669.86,1.51155079]
[1752113913232,0.25956783,670.6,669.87,1.51155079]
[1752113913431,0.25956783,670.6,669.88,1.51155079]
[1752113913630,0.25956783,670.6,669.89,1.51155079]
[1752113913839,0.25956783,670.6,669.9,1.51155079]
[1752113914040,0.25956783,670.6,669.91,1.51155079]
[1752113914240,0.25956783,670.6,669.92,1.51155079]
[1752113914442,0.25956783,670.6,669.93,1.51155079]
[1752113914639,0.25956783,670.6,669.72,1.988]
[1752113914842,0.25956783,670.6,669.73,1.5117525]
[1752113915143,0.25956783,670.6,669.72,1.988]
[1752113915144,0.25956783,670.6,669.74,1.5117525]
[1752113915344,0.25956783,670.6,669.75,1.5117525]
[1752113915642,0.25956783,670.6,669.76,1.5117525]
[1752113915845,0.25956783,670.6,669.77,1.5117525]
[1752113916046,0.25956783,670.6,669.78,1.5117525]
[1752113916341,0.25956783,670.6,669.79,1.5117525]
[1752113916642,0.25956783,670.6,669.8,1.5117525]
[1752113916845,0.25956783,670.6,669.81,1.5117525]
[1752113917044,0.25956783,670.6,669.82,1.5117525]
[1752113917243,0.25956783,670.6,669.83,1.5117525]
[1752113917442,0.25956783,670.6,669.84,1.5117525]
[1752113917746,0.25956783,670.6,669.85,1.5117525]
[1752113917943,0.25956783,670.6,669.86,1.5117525]
[1752113918142,0.25956783,670.6,669.87,1.5117525]
[1752113918346,0.25956783,670.6,669.88,1.5117525]
[1752113918544,0.25956783,670.6,669.89,1.5117525]
[1752113918744,0.25956783,670.6,669.9,1.5117525]
[1752113919050,0.25956783,670.6,669.91,1.5117525]
[1752113919344,0.25956783,670.6,669.92,1.5117525]
[1752113919548,0.25956783,670.6,669.93,1.5117525]
[1752113919743,0.25956783,670.6,669.94,1.5117525]
[1752113920047,0.25956783,670.6,669.95,1.5117525]
[1752113920243,0.25956783,670.6,669.96,1.5117525]
[1752113920447,0.25956783,670.6,669.97,1.5117525]
[1752113920649,0.25956783,670.6,669.98,1.5117525]
[1752113920848,0.25956783,670.6,669.99,1.5117525]
[1752113921149,0.25956783,670.6,670.0,1.5117525]
[1752113921346,0.25956783,670.6,670.01,1.5117525]
[1752113921650,0.25956783,670.6,670.02,1.5117525]
[1752113921849,0.25956783,670.6,669.83,1.66167156]
[1752113921850,0.25956783,670.6,670.03,1.5117525]
[1752113922050,0.25956783,670.6,670.04,1.5117525]
[1752113922247,0.25956783,670.6,670.05,1.5117525]
[1752113922451,0.25956783,670.6,670.06,1.5117525]
[1752113922652,0.25956783,670.6,670.07,1.51095601]
[1752113922846,0.25956783,670.6,669.81,1.66167156]
[1752113923046,0.25956783,670.6,669.82,1.51095601]
[1752113923251,0.25956783,670.6,669.83,1.51095601]
[1752113923449,0.25956783,670.6,669.84,1.51095601]
[1752113923751,0.25956783,670.6,669.85,1.51095601]
[1752113923950,0.25956783,670.6,669.86,1.51095601]
[1752113924153,0.25956783,670.6,669.87,1.51095601]
[1752113924352,0.25956783,670.6,669.88,1.51095601]
[1752113924550,0.25956783,670.6,669.89,1.51095601]
[1752113924753,0.25956783,670.6,669.9,1.51095601]
[1752113925052,0.25956783,670.6,669.91,1.51095601]
[1752113925250,0.25956783,670.6,669.92,1.51095601]
[1752113925552,0.25956783,670.6,669.93,1.51095601]
[1752113925851,0.25956783,670.6,669.94,1.51095601]
[1752113926049,0.25956783,670.6,669.95,1.51095601]
[1752113926254,0.25956783,670.6,669.96,1.51095601]
[1752113926452,0.25956783,670.6,669.97,1.51095601]
[1752113926656,0.25956783,670.6,669.98,1.51095601]
[1752113926854,0.25956783,670.6,669.99,1.51095601]
[1752113927052,0.25956783,670.6,670.0,1.51095601]
[1752113927260,0.25956783,670.6,670.01,1.51095601]
[1752113927455,0.25956783,670.6,670.02,1.51095601]
[1752113927655,0.25956783,670.6,670.03,1.51095601]
[1752113927854,0.25956783,670.6,670.04,1.51095601]
[1752113928154,0.25956783,670.6,670.05,1.51095601]
[1752113928358,0.25956783,670.6,670.06,1.51095601]
[1752113928657,0.25956783,670.6,670.07,1.51095601]
[1752113928860,0.25956783,670.6,669.81,1.66167156]
[1752113929054,0.25956783,670.6,669.82,1.51144055]
[1752113929257,0.25956783,670.6,669.83,1.51144055]
[1752113929460,0.25956783,670.6,669.84,1.51144055]
[1752113929658,0.25956783,670.6,669.85,1.51144055]
[1752113929857,0.25956783,670.6,669.86,1.51144055]
[1752113930154,0.25956783,670.6,669.87,1.51144055]
[1752113930354,0.25956783,670.6,669.88,1.51144055]
[1752113930555,0.25956783,670.6,669.89,1.51144055]
[1752113930860,0.25956783,670.6,669.9,1.51144055]
[1752113931159,0.25956783,670.6,669.91,1.51144055]
[1752113931355,0.25956783,670.6,669.92,1.51144055]
[1752113931557,0.25956783,670.6,669.93,1.51144055]
[1752113931761,0.25956783,670.6,669.94,1.51144055]
[1752113932061,0.25956783,670.6,669.95,1.51144055]
[1752113932260,0.25956783,670.6,669.96,1.51144055]
[1752113932458,0.25956783,670.6,669.97,1.51144055]
[1752113932657,0.25956783,670.6,669.98,1.51144055]
[1752113932856,0.25956783,670.6,669.99,1.51144055]
[1752113933162,0.25956783,670.6,670.0,1.51144055]
[1752113933358,0.25956783,670.6,670.01,1.51144055]
[1752113933561,0.25956783,670.6,670.02,1.51144055]
[1752113933862,0.25956783,670.6,670.03,1.51144055]
[1752113934062,0.25956783,670.6,670.04,1.51144055]
[1752113934261,0.25956783,670.6,670.05,1.51144055]
[1752113934557,0.25956783,670.6,670.06,1.51144055]
[1752113934759,0.25956783,670.6,670.07,1.51144055]
[1752113934962,0.25956783,670.6,670.0,2.765]
[1752113935163,0.25956783,670.6,670.01,1.51230004]
[1752113935362,0.25956783,670.6,670.02,1.51230004]
[1752113935560,0.25956783,670.6,670.03,1.51230004]
[1752113935864,0.25956783,670.6,670.04,1.51230004]
[1752113936064,0.25956783,670.6,670.05,1.51230004]
[1752113936264,0.25956783,670.6,670.06,1.51230004]
[1752113936465,0.25956783,670.6,670.07,1.51230004]
[1752113936661,0.25956783,670.6,670.0,2.765]
[1752113936865,0.25956783,670.6,670.01,1.5124918]
[1752113937165,0.25956783,670.6,670.02,1.5124918]
[1752113937460,0.25956783,670.6,670.03,1.5124918]
[1752113937661,0.25956783,670.6,670.04,1.5124918]
[1752113937860,0.25956783,670.6,670.05,1.5124918]
[1752113938064,0.25956783,670.6,670.06,1.5124918]
[1752113938262,0.25956783,670.6,670.07,1.5124918]
[1752113938464,0.25956783,670.6,670.0,2.765]
[1752113938662,0.25956783,670.6,670.01,1.5126925]
[1752113938866,0.25956783,670.6,670.02,1.5126925]
[1752113939066,0.25956783,670.6,670.03,1.5126925]
[1752113939363,0.25956783,670.6,670.04,1.5126925]
[1752113939566,0.25956783,670.6,670.05,1.5126925]
[1752113939764,0.25956783,670.6,670.06,1.5126925]
[1752113939964,0.25956783,670.6,670.07,1.5126925]
[1752113940166,0.25956783,670.6,670.08,1.5126925]
[1752113940467,0.25956783,670.6,670.09,1.5126925]
[1752113940664,0.25956783,670.6,670.1,1.5126925]
[1752113940868,0.25956783,670.6,670.11,1.5126925]
[1752113941067,0.25956783,670.6,670.12,1.5126925]
[1752113941268,0.25956783,670.6,670.13,1.5126925]
[1752113941468,0.25956783,670.6,670.0,2.765]
[1752113941668,0.25956783,670.6,670.01,1.51250993]
[1752113941869,0.25956783,670.6,670.02,1.51250993]
[1752113942168,0.25956783,670.6,670.03,1.51250993]
[1752113942365,0.25956783,670.6,670.04,1.51250993]
[1752113942566,0.25956783,670.6,670.05,1.51250993]
[1752113942766,0.25956783,670.6,670.06,1.51250993]
[1752113942971,0.25956783,670.6,670.07,1.51250993]
[1752113943169,0.25956783,670.6,670.08,1.51250993]
[1752113943369,0.25956783,670.6,670.09,1.51250993]
[1752113943569,0.25956783,670.6,670.1,1.51250993]
[1752113943766,0.25956783,670.6,670.11,1.51250993]
[1752113943966,0.25956783,670.6,670.12,1.51250993]
[1752113944266,0.25956783,670.6,670.13,1.51250993]
[1752113944470,0.25956783,670.6,670.0,2.765]
[1752113944671,0.25956783,670.6,670.01,1.51255312]
[1752113944869,0.25956783,670.6,670.02,1.51255312]
[1752113945072,0.25956783,670.6,670.03,1.51255312]
[1752113945272,0.25956783,670.6,670.04,1.51255312]
[1752113945471,0.25956783,670.6,670.05,1.51255312]